fUST/lending_fUST_20240118
["ID","MTS","AMOUNT","RATE_DAILY","PERIOD"]
[312010705,1705546241435,-153.23014305,0.0003079,7]
[312010707,1705546241444,-200.41,0.000308,4]
[312010709,1705546241453,-154.81467579,0.00030888,7]
[312010711,1705546241462,-1761.29,0.00030958,2]
[312010713,1705546241471,-97008.73081987,0.00031,4]
[312010715,1705546241480,-5000.0,0.00031232,7]
[312010717,1705546241489,-1761.29,0.00031232,2]
[312010718,1705546241503,-1467.11943554,0.000315,45]
[312010720,1705546241512,-1500.0,0.000315,2]
[312010722,1705546241522,-1761.29,0.00031506,2]
[312010725,1705546241531,-151.0,0.00031511,2]
[312010726,1705546241541,-328.823727,0.00031526,2]
[312010729,1705546241550,-642.395033,0.00031526,2]
[312010731,1705546241560,-200.0,0.00031624,15]
[312010733,1705546241569,-200.0,0.00031624,15]
[312010735,1705546241578,-200.0,0.00031624,15]
[312010737,1705546241587,-200.0,0.00031624,15]
[312010739,1705546241596,-275.0,0.00031624,15]
[312010740,1705546241606,-190.142785,0.000317,4]
[312010743,1705546241616,-153.23014305,0.00031763,7]
[312010745,1705546241625,-1761.29,0.0003178,2]
[312010746,1705546241634,-379.58408484,0.00032,30]
[312010749,1705546241643,-64737.00989053,0.00032,7]
[312010750,1705546241652,-5000.0,0.00032,7]
[312010752,1705546241661,-1911.74258912,0.00032,7]
[312010754,1705546241670,-382.34851782,0.00032,7]
[312010756,1705546241679,-834.29205808,0.00032,7]
[312010758,1705546241688,-166.85841162,0.00032,7]
[312010761,1705546241697,-336.45316153,0.00032,7]
[312010763,1705546241707,-1682.26580764,0.00032,7]
[312010765,1705546241716,-50000.0,0.00032,7]
[312010767,1705546241725,-5000.0,0.00032,7]
[312010769,1705546241734,-353.2758196,0.00032,7]
[312010770,1705546241743,-1059.82745881,0.00032,7]
[312010772,1705546241752,-3850.0,0.00032,7]
[312010774,1705546241762,-19250.0,0.00032,7]
[312010776,1705546241771,-502.016768,0.00032,3]
[312010779,1705546241780,-200.0,0.00032,4]
[312010780,1705546241790,-150.0,0.00032,5]
[312010783,1705546241799,-1761.29,0.00032054,2]
[312010784,1705546241808,-620.0004677,0.00032089,2]
[312010786,1705546241817,-11226.75463028,0.000321,7]
[312010789,1705546241826,-231.9716211,0.00032118,7]
[312010790,1705546241836,-300.0,0.00032243,2]
[312010793,1705546241846,-153.23014305,0.00032277,7]
[312010794,1705546241855,-1761.29,0.00032328,2]
[312010796,1705546241864,-153.62233,0.0003233,2]
[312010798,1705546241873,-155.846913,0.0003233,2]
[312010800,1705546241882,-150.084162,0.0003233,2]
[312010802,1705546241891,-151.0,0.00032334,2]
[312010804,1705546241900,-150.0,0.000324,4]
[312010807,1705546241909,-328.823727,0.00032446,2]
[312010809,1705546241918,-642.395033,0.00032446,2]
[312010810,1705546241927,-500.0,0.000325,2]
[312010813,1705546241937,-500.0,0.000325,2]
[312010815,1705546241946,-500.0,0.000325,2]
[312010817,1705546241957,-500.0,0.000325,2]
[312010819,1705546241966,-500.0,0.000325,2]
[312010821,1705546241975,-349982.58377249,0.000325,20]
[312010822,1705546241985,-1500.0,0.000325,2]
[312010824,1705546241994,-163.898293,0.000325,2]
[312010827,1705546242004,-245.009401,0.000325,5]
[312010829,1705546242013,-245.009401,0.000325,5]
[312010830,1705546242022,-245.009401,0.000325,5]
[312010833,1705546242031,-1761.29,0.00032602,2]
[312010834,1705546242040,-153.23014305,0.00032603,7]
[312010837,1705546242050,-1761.29,0.00032876,2]
[312010839,1705546242060,-500.0,0.00032876,7]
[312010840,1705546242071,-500.0,0.00032876,7]
[312010842,1705546242080,-189.25036904,0.00032876,7]
[312010844,1705546242089,-500.0,0.00032876,7]
[312010846,1705546242099,-196.33143984,0.00032876,7]
[312010849,1705546242109,-500.0,0.00032876,7]
[312010851,1705546242119,-425.25435282,0.00032876,7]
[312010853,1705546242129,-553.80847791,0.00032876,7]
[312010855,1705546242138,-500.0,0.00032876,7]
[312010857,1705546242148,-500.0,0.00032876,7]
[312010859,1705546242159,-580.20362561,0.00032876,7]
[312010861,1705546242168,-500.0,0.00032876,7]
[312010862,1705546242179,-500.0,0.00032876,7]
[312010864,1705546242188,-500.0,0.00032876,7]
[312010867,1705546242197,-500.0,0.00032876,7]
[312010868,1705546242207,-500.0,0.00032876,7]
[312010870,1705546242216,-500.0,0.00032876,7]
[312010873,1705546242226,-500.0,0.00032876,7]
[312010874,1705546242235,-500.0,0.00032876,7]
[312010877,1705546242245,-500.0,0.00032876,7]
[312010878,1705546242255,-500.0,0.00032876,7]
[312010880,1705546242264,-500.0,0.00032876,7]
[312010882,1705546242273,-500.0,0.00032876,7]
[312010884,1705546242283,-500.0,0.00032876,7]
[312010886,1705546242292,-500.0,0.00032876,7]
[312010888,1705546242301,-500.0,0.00032876,7]
[312010890,1705546242310,-500.0,0.00032876,7]
[312010892,1705546242320,-500.0,0.00032876,7]
[312010894,1705546242329,-500.0,0.00032876,7]
[312010896,1705546242338,-500.0,0.00032876,7]
[312010898,1705546242348,-500.0,0.00032876,7]
[312010900,1705546242357,-500.0,0.00032876,7]
[312010902,1705546242367,-500.0,0.00032876,7]
[312010904,1705546242376,-500.0,0.00032876,7]
[312010906,1705546242386,-500.0,0.00032876,7]
[312010908,1705546242395,-500.0,0.00032876,7]
[312010910,1705546242405,-500.0,0.00032876,7]
[312010912,1705546242414,-500.0,0.00032876,7]
[312010914,1705546242423,-500.0,0.00032876,7]
[312010916,1705546242432,-500.0,0.00032876,7]
[312010918,1705546242441,-243.77571218,0.00032876,7]
[312010920,1705546242450,-500.0,0.00032876,7]
[312010923,1705546242459,-500.0,0.00032876,7]
[312010926,1705546242468,-500.0,0.00032876,7]
[312010927,1705546242477,-500.0,0.00032876,7]
[312010931,1705546242486,-500.0,0.00032876,7]
[312010933,1705546242495,-272.48116405,0.00032876,7]
[312010935,1705546242504,-494.60951132,0.00032876,7]
[312010937,1705546242513,-550.0,0.00032876,7]
[312010940,1705546242522,-500.0,0.00032876,7]
[312010942,1705546242531,-500.0,0.00032876,7]
[312010944,1705546242540,-500.0,0.00032876,7]
[312010946,1705546242548,-500.0,0.00032876,7]
[312010948,1705546242557,-500.0,0.00032876,7]
[312010950,1705546242567,-500.0,0.00032876,7]
[312010952,1705546242576,-500.0,0.00032876,7]
[312010954,1705546242585,-500.0,0.00032876,7]
[312010956,1705546242594,-500.0,0.00032876,7]
[312010958,1705546242605,-500.0,0.00032876,7]
[312010960,1705546242614,-291.03920272,0.00032876,7]
[312010962,1705546242623,-500.0,0.00032876,7]
[312010971,1705546242695,-500.0,0.00032876,7]
[312010973,1705546242705,-500.0,0.00032876,7]
[312010975,1705546242714,-524.59711981,0.00032876,7]
[312010977,1705546242723,-500.0,0.00032876,7]
[312010979,1705546242733,-500.0,0.00032876,7]
[312010981,1705546242742,-500.0,0.00032876,7]
[312010983,1705546242751,-500.0,0.00032876,7]
[312010985,1705546242760,-500.0,0.00032876,7]
[312010987,1705546242770,-500.0,0.00032876,7]
[312010989,1705546242779,-500.0,0.00032876,7]
[312010991,1705546242788,-500.0,0.00032876,7]
[312010993,1705546242797,-168.397538,0.00032877,2]
[312010995,1705546242806,-168.397538,0.00032877,120]
[312010997,1705546242815,-155.0,0.00032877,2]
[312010999,1705546242824,-160.0,0.00032921,3]
[312011001,1705546242834,-2000.0,0.00032934,2]
[312011003,1705546242843,-2000.0,0.00032934,2]
[312011005,1705546242854,-150.0,0.00032976,2]
[312011007,1705546242863,-219.22878607,0.00033,3]
[312011009,1705546242873,-1000.0,0.00033,33]
[312011011,1705546242882,-155.20230455,0.00033,4]
[312011013,1705546242891,-500.0,0.00033,3]
[312011015,1705546242901,-468.0,0.00033,2]
[312011017,1705546242910,-170.0,0.00033,2]
[312011019,1705546242919,-153.23014305,0.0003304,7]
[312011021,1705546242929,-160.0,0.00033098,4]
[312011023,1705546242939,-152.951786,0.00033138,2]
[312011025,1705546242949,-1761.29,0.0003315,2]
[312011027,1705546242959,-468.0,0.00033151,2]
[312011029,1705546242968,-151.0,0.00033156,2]
[312011031,1705546242977,-231.9716211,0.00033257,7]
[312011033,1705546242986,-231.9716211,0.00033262,7]
[312011035,1705546242995,-160.0,0.00033276,5]
[312011037,1705546243004,-328.823727,0.00033366,2]
[312011038,1705546243013,-642.395033,0.00033366,2]
[312011040,1705546243022,-1761.29,0.00033424,2]
[312011042,1705546243031,-160.0,0.00033453,6]
[312011044,1705546243041,-153.23014305,0.00033554,7]
[312011046,1705546243050,-231.9716211,0.00033556,7]
[312011048,1705546243059,-160.0,0.0003363,7]
[312011050,1705546243068,-620.00002339,0.00033694,2]
[312011052,1705546243084,-620.00002339,0.00033694,2]
[312011054,1705546243093,-1761.29,0.00033698,2]
[312011056,1705546243104,-210.0,0.000337,30]
[312011058,1705546243113,-606.0,0.000337,30]
[312011060,1705546243122,-210.0,0.0003371,30]
[312011062,1705546243131,-606.0,0.0003371,30]
[312011064,1705546243140,-210.0,0.0003372,30]
[312011066,1705546243150,-606.0,0.0003372,30]
[312011068,1705546243159,-248721.2009965,0.000338,7]
[312011071,1705546243175,-5520.40793407,0.000338,7]
[312011080,1705546243254,-1001.0905635,0.000338,7]
[312011096,1705546243395,-390.92951651,0.00026121,2]
[312011098,1705546243406,-79.98097901,0.00026121,2]
[312011100,1705546243415,-1989.28817384,0.00027387,3]
[312011346,1705546246043,-6776.86074812,0.000187,2]
[312011349,1705546246055,-2450.89789344,0.000187,2]
[312012506,1705546429300,4577.46871598,0.0001631,2]
[312012507,1705546435347,154.9690062,0.00016823,3]
[312012508,1705546744501,-7954.79361021,0.00018679,2]
[312012509,1705546744523,-154.98450155,0.0001868,2]
[312012510,1705546744546,-756.30093957,0.0001868,2]
[312012511,1705546744567,-260.95401004,0.0001868,2]
[312012512,1705546744590,-166.26858299,0.0001868,2]
[312012513,1705546744705,-361.52163179,0.0001868,2]
[312012514,1705546744728,-156.15330816,0.0001868,2]
[312012515,1705546744749,-1265.64175415,0.00018681,2]
[312012516,1705546744771,-1619.27165165,0.00018681,2]
[312012517,1705546749736,24900.0,0.00017691,2]
[312012521,1705546802250,157.705867,0.00017684,2]
[312012523,1705546885993,-154.21250895,0.00018573,2]
[312012524,1705546886016,-1992.22396465,0.00018671,2]
[312012525,1705546886038,-213.27624755,0.00018672,2]
[312012526,1705546886059,-2033.10997564,0.00018672,2]
[312012527,1705546886080,-154.9690062,0.00018673,2]
[312012528,1705546886102,-160.90351567,0.00018673,2]
[312012529,1705546886123,-20860.81062343,0.00018673,2]
[312012530,1705546886144,-1265.64175415,0.00018674,2]
[312012531,1705546886165,-1739.74835498,0.00018674,2]
[312012532,1705546886186,-286.17658089,0.00018674,2]
[312012533,1705546886207,-81157.58352198,0.00018676,2]
[312012534,1705546886227,-623.31605291,0.00018679,2]
[312012535,1705546886248,-2044.90523918,0.00018679,2]
[312012536,1705546886269,-12678.79846726,0.00018679,2]
[312012537,1705546886292,-5412.35449693,0.00018679,2]
[312012538,1705546886312,-1438.30122146,0.00018679,2]
[312012539,1705546886336,-1167.08116397,0.00018679,2]
[312012540,1705546886356,-244.34815903,0.0001868,2]
[312012541,1705546886381,-18998.63055035,0.0001868,2]
[312012542,1705546886402,-20180.75442845,0.00018681,2]
[312012543,1705546886426,-198.94544121,0.00018687,2]
[312012544,1705546886448,-523.07117362,0.00018698,2]
[312012545,1705546886469,-2101.67947703,0.00018698,2]
[312012546,1705546886491,-300.55932873,0.00018698,2]
[312012547,1705546886512,-2072.13666013,0.00018698,2]
[312012548,1705546886533,-154.98450155,0.00018699,2]
[312012549,1705546886553,-2162.1753907,0.00018699,2]
[312012550,1705546886574,-470.34681749,0.00018699,2]
[312012551,1705546886595,-215.07395846,0.00018699,2]
[312012552,1705546886616,-301.03236458,0.00018699,2]
[312012553,1705546886638,-688.82709207,0.000189,2]
[312012554,1705546886660,-1581.11940922,0.00019,2]
[312012555,1705546886681,-175.163184,0.00019178,2]
[312012556,1705546886702,-155.37602413,0.00019499,2]
[312012557,1705546886722,-380.20094622,0.000195,2]
[312012558,1705546886744,-200.0,0.0001961,2]
[312012559,1705546886765,-2995.72102978,0.0002,2]
[312012560,1705546886785,-154.9690062,0.0002,2]
[312012561,1705546886807,-678.05962952,0.0002,2]
[312012562,1705546886827,-2082.71954556,0.0002,2]
[312012563,1705546886848,-238.02437486,0.0002,2]
[312012564,1705546886870,-200.0,0.0002,2]
[312012565,1705546886890,-300.0,0.0002,2]
[312012566,1705546886911,-154.9690062,0.0002,2]
[312012567,1705546886932,-155.94950765,0.0002,2]
[312012568,1705546886953,-849.59512114,0.0002,2]
[312012569,1705546886973,-1196.96135251,0.0002,2]
[312012570,1705546886995,-154.98450155,0.0002,2]
[312012571,1705546887015,-580.86831652,0.0002,2]
[312012572,1705546887036,-158.26314997,0.0002,2]
[312012573,1705546887057,-155.31078673,0.0002,2]
[312012574,1705546887079,-155.07355916,0.0002,2]
[312012575,1705546887100,-156.56329033,0.0002,2]
[312012576,1705546898522,2082.71954556,0.0002,2]
[312012577,1705546904969,200.0,0.0002,2]
[312012578,1705546915354,300.0,0.0002,2]
[312012579,1705546920622,2082.71954556,0.0002,2]
[312012580,1705546927005,200.0,0.0002,2]
[312012581,1705546933376,300.0,0.0002,2]
[312012582,1705546938522,2082.71954556,0.0002,2]
[312012583,1705546942976,200.0,0.0002,2]
[312012584,1705546948835,1113.73927963,0.000195,2]
[312012585,1705546949357,300.0,0.0002,2]
[312012586,1705546958523,2082.71954556,0.0002,2]
[312012587,1705546959054,200.0,0.0002,2]
[312012588,1705546973366,300.0,0.0002,2]
[312012589,1705546978527,2119.98187381,0.0002,2]
[312012592,1705547211747,24900.0,0.00019881,2]
[312012593,1705547230744,157.705867,0.00019833,2]
[312012595,1705547311674,-1113.73927963,0.00020225,2]
[312012596,1705547311700,-688.82709207,0.00020225,2]
[312012597,1705547311727,-1196.96135251,0.00020225,2]
[312012598,1705547311754,-1000.47227579,0.00020225,2]
[312012599,1705547325371,1109.37179441,0.000195,2]
[312012675,1705547432310,-154.9690062,0.00020216,2]
[312012677,1705547432320,-154.9690062,0.00020217,2]
[312012679,1705547432329,-688.82709207,0.00020218,2]
[312012681,1705547432338,-1581.11940922,0.00020218,2]
[312012683,1705547432348,-849.59512114,0.00020219,2]
[312012685,1705547432357,-678.05962952,0.0002022,2]
[312012687,1705547432367,-154.9690062,0.0002022,2]
[312012689,1705547432377,-1265.64175415,0.0002022,2]
[312012691,1705547432386,-2995.72102978,0.00020221,2]
[312012692,1705547432396,-170.25272058,0.000209,2]
[312012694,1705547432405,-1200.47743595,0.00020999,2]
[312012696,1705547432414,-3221.59705085,0.00021,2]
[312012771,1705547438164,-470.34681749,0.00020998,2]
[312012772,1705547438173,-280.60015563,0.00021,2]
[312012773,1705547438182,-1453.55677115,0.00021,2]
[312012774,1705547438385,-11867.50859284,0.00021,2]
[312012775,1705547438394,-250.59967114,0.00021,2]
[312012776,1705547438403,-1815.75822214,0.00021,2]
[312012777,1705547438413,-200.0,0.00021231,7]
[312012778,1705547438422,-327.24959811,0.00021256,2]
[312012779,1705547438431,-9112.94247828,0.0002155,2]
[312012780,1705547438441,-166.666666,0.00021918,2]
[312012781,1705547438450,-154.9690062,0.00022,2]
[312012782,1705547438461,-155.15540084,0.00022,2]
[312012783,1705547438470,-293.23530462,0.00022,4]
[312012784,1705547438479,-3959.1053351,0.00022,2]
[312012785,1705547438489,-425.62034809,0.00022,2]
[312012786,1705547438497,-2000.0,0.000223,2]
[312012787,1705547438506,-2000.0,0.0002231,2]
[312012788,1705547438516,-2000.0,0.0002232,2]
[312012789,1705547438527,-2000.0,0.0002233,2]
[312012790,1705547438539,-2000.0,0.0002234,2]
[312012791,1705547438548,-2000.0,0.0002235,2]
[312012792,1705547438558,-2000.0,0.0002236,2]
[312012793,1705547438567,-2000.0,0.0002237,2]
[312012794,1705547438576,-2000.0,0.0002238,2]
[312012795,1705547438586,-2000.0,0.0002239,2]
[312012796,1705547438594,-2000.0,0.000224,2]
[312012797,1705547438604,-2000.0,0.0002241,2]
[312012798,1705547438612,-8198.05,0.0002241,3]
[312012799,1705547438622,-2000.0,0.0002242,2]
[312012800,1705547438631,-9837.67,0.0002242,3]
[312012801,1705547438640,-2000.0,0.0002243,2]
[312012802,1705547438649,-166.666666,0.00022431,2]
[312012803,1705547438659,-2000.0,0.0002244,2]
[312012804,1705547438667,-2000.0,0.0002245,2]
[312012805,1705547438677,-304.05578473,0.00022458,2]
[312012806,1705547438686,-2078.38738153,0.00022459,2]
[312012807,1705547438695,-2000.0,0.0002246,2]
[312012808,1705547438704,-2000.0,0.0002247,2]
[312012809,1705547438714,-2101.67947703,0.00022478,2]
[312012810,1705547438724,-2000.0,0.0002248,2]
[312012811,1705547438733,-2000.0,0.0002249,2]
[312012812,1705547438742,-155.54708111,0.00022497,2]
[312012813,1705547438751,-521.09377722,0.00022499,2]
[312012814,1705547438761,-2000.0,0.000225,2]
[312012815,1705547438770,-2000.0,0.0002251,2]
[312012816,1705547438779,-2000.0,0.0002252,2]
[312012817,1705547438789,-2000.0,0.0002253,2]
[312012818,1705547438798,-2000.0,0.0002254,2]
[312012819,1705547438807,-2000.0,0.0002255,2]
[312012820,1705547438816,-81231.28857255,0.00022558,2]
[312012821,1705547438825,-14009.82965156,0.00022558,2]
[312012822,1705547438834,-223.29865064,0.00022558,2]
[312012823,1705547438843,-2032.26293116,0.00022558,2]
[312012824,1705547438853,-212.26993103,0.00022559,2]
[312012825,1705547438862,-229.79958234,0.00022559,2]
[312012826,1705547438872,-846.91218904,0.00022559,2]
[312012827,1705547438881,-882.3712381,0.00022559,2]
[312012828,1705547438892,-299.12465914,0.00022559,2]
[312012829,1705547438901,-2000.0,0.0002256,2]
[312012830,1705547438910,-3762.444403,0.0002257,2]
[312012831,1705547438919,-166.666666,0.00022944,2]
[312012832,1705547438929,-280.0,0.00023354,7]
[312012833,1705547438938,-304.05578471,0.00023402,2]
[312012834,1705547438947,-166.666666,0.00023456,2]
[312012835,1705547438956,-166.666666,0.00023969,2]
[312012836,1705547438965,-4010.78536694,0.00024,2]
[312012837,1705547438975,-1830.62942806,0.00024,2]
[312012838,1705547438990,-2000.0,0.000243,2]
[312012839,1705547439007,-2000.0,0.0002431,2]
[312012840,1705547439022,-2000.0,0.0002432,2]
[312012841,1705547439032,-2000.0,0.0002433,2]
[312012842,1705547439047,-2000.0,0.0002434,2]
[312012843,1705547439059,-304.05578471,0.00024345,2]
[312012844,1705547439073,-2000.0,0.0002435,2]
[312012845,1705547439087,-2000.0,0.0002436,2]
[312012846,1705547439101,-2000.0,0.0002437,2]
[312012847,1705547439112,-2000.0,0.0002438,2]
[312012848,1705547439126,-2000.0,0.0002439,2]
[312012849,1705547439141,-2000.0,0.000244,2]
[312012850,1705547439154,-2000.0,0.0002441,2]
[312012851,1705547439167,-2000.0,0.0002442,2]
[312012852,1705547439181,-2000.0,0.0002443,2]
[312012853,1705547439192,-2000.0,0.0002444,2]
[312012854,1705547439206,-2000.0,0.0002445,2]
[312012855,1705547439220,-2000.0,0.0002446,2]
[312012856,1705547439233,-2000.0,0.0002447,2]
[312012857,1705547439245,-2000.0,0.0002448,2]
[312012858,1705547439258,-166.666666,0.00024482,2]
[312012859,1705547439273,-2844.251759,0.0002449,2]
[312012860,1705547439286,-200.0,0.00024658,2]
[312012861,1705547439301,-497.89805688,0.0002495,5]
[312012862,1705547439316,-1045.45812768,0.00025,2]
[312012863,1705547439331,-3000.0,0.00025,2]
[312012864,1705547439342,-274.5510469,0.00025,2]
[312012865,1705547439354,-678.93201338,0.00025,2]
[312012866,1705547439365,-4718.82684458,0.00025,2]
[312012867,1705547439381,-1038.14311611,0.00025,2]
[312012868,1705547439394,-294.64825726,0.00025,2]
[312012869,1705547439409,-258.44452491,0.00025,2]
[312012870,1705547439421,-304.05578471,0.00025289,2]
[312012871,1705547439434,-7193.15698043,0.00025297,2]
[312012872,1705547439446,-391.0,0.0002569,7]
[312012873,1705547439461,-526.29712741,0.00026,2]
[312012874,1705547439473,-241.07273581,0.00026,2]
[312012875,1705547439486,-500.0,0.0002602,2]
[312012876,1705547439499,-500.0,0.0002602,2]
[312012877,1705547439511,-684.76229226,0.0002602,2]
[312012878,1705547439522,-500.0,0.0002602,2]
[312012879,1705547439534,-737.63259499,0.0002602,2]
[312012880,1705547439545,-500.0,0.0002602,2]
[312012881,1705547439556,-470.91049552,0.0002602,2]
[312012882,1705547439567,-500.0,0.0002602,2]
[312012883,1705547439578,-500.0,0.0002602,2]
[312012884,1705547439590,-684.76229226,0.0002602,2]
[312012885,1705547439601,-500.0,0.0002602,2]
[312012886,1705547439612,-500.0,0.0002602,2]
[312012887,1705547439624,-737.63259499,0.0002602,2]
[312012888,1705547439636,-500.0,0.0002602,2]
[312012889,1705547439647,-500.0,0.0002602,2]
[312012890,1705547439658,-684.76229226,0.0002602,2]
[312012891,1705547439669,-737.63259499,0.0002602,2]
[312012892,1705547439681,-500.0,0.0002602,2]
[312012893,1705547439694,-500.0,0.0002602,2]
[312012894,1705547439706,-500.0,0.0002602,2]
[312012895,1705547439719,-684.76229226,0.0002602,2]
[312012896,1705547439731,-737.63259499,0.0002602,2]
[312012897,1705547439742,-500.0,0.0002602,2]
[312012898,1705547439754,-500.0,0.0002602,2]
[312012899,1705547439766,-737.63259499,0.0002602,2]
[312012900,1705547439779,-684.76229226,0.0002602,2]
[312012901,1705547439793,-500.0,0.0002602,2]
[312012902,1705547439806,-500.0,0.0002602,2]
[312012903,1705547439818,-737.63259499,0.0002602,2]
[312012904,1705547439830,-684.76229226,0.0002602,2]
[312012905,1705547439842,-490.67097793,0.0002602,2]
[312012906,1705547439854,-737.63259499,0.0002602,2]
[312012907,1705547439865,-684.76229226,0.0002602,2]
[312012908,1705547439974,-737.63259499,0.0002602,2]
[312012909,1705547439989,-684.76229226,0.0002602,2]
[312012910,1705547439999,-737.63259499,0.0002602,2]
[312012911,1705547440009,-684.76229226,0.0002602,2]
[312012912,1705547440018,-737.63259499,0.0002602,2]
[312012913,1705547440027,-500.0,0.0002602,2]
[312012914,1705547440036,-392.90611844,0.0002602,2]
[312012915,1705547440046,-500.0,0.0002602,2]
[312012916,1705547440055,-737.63259499,0.0002602,2]
[312012917,1705547440064,-684.76229226,0.0002602,2]
[312012918,1705547440074,-500.0,0.0002602,2]
[312012919,1705547440083,-737.63259499,0.0002602,2]
[312012920,1705547440093,-684.76229226,0.0002602,2]
[312012921,1705547440102,-737.63259499,0.0002602,2]
[312012922,1705547440111,-500.0,0.0002602,2]
[312012923,1705547440122,-737.63259499,0.0002602,2]
[312012924,1705547440130,-168.21310528,0.0002602,2]
[312012925,1705547440139,-159.47934842,0.0002602,2]
[312012926,1705547440149,-737.63259499,0.0002602,2]
[312012927,1705547440159,-684.76229226,0.0002602,2]
[312012928,1705547440168,-500.0,0.0002602,2]
[312012929,1705547440177,-500.0,0.0002602,2]
[312012930,1705547440186,-500.0,0.0002602,2]
[312012932,1705547440195,-684.76229226,0.0002602,2]
[312012934,1705547440204,-500.0,0.0002602,2]
[312012936,1705547440213,-737.63259499,0.0002602,2]
[312012937,1705547440222,-500.0,0.0002602,2]
[312012938,1705547440231,-500.0,0.0002602,2]
[312012939,1705547440240,-684.76229226,0.0002602,2]
[312012940,1705547440249,-737.63259499,0.0002602,2]
[312012941,1705547440258,-500.0,0.0002602,2]
[312012942,1705547440268,-500.0,0.0002602,2]
[312012944,1705547440277,-737.63259499,0.0002602,2]
[312012946,1705547440286,-500.0,0.0002602,2]
[312012948,1705547440295,-684.76229226,0.0002602,2]
[312012950,1705547440304,-500.0,0.0002602,2]
[312012952,1705547440313,-737.63259499,0.0002602,2]
[312012954,1705547440322,-684.76229226,0.0002602,2]
[312012955,1705547440331,-737.63259499,0.0002602,2]
[312012956,1705547440340,-500.0,0.0002602,2]
[312012957,1705547440349,-684.76229226,0.0002602,2]
[312012959,1705547440358,-684.76229226,0.0002602,2]
[312012961,1705547440369,-500.0,0.0002602,2]
[312012963,1705547440378,-684.76229226,0.0002602,2]
[312012965,1705547440387,-737.63259499,0.0002602,2]
[312012967,1705547440397,-500.0,0.0002602,2]
[312012969,1705547440406,-684.76229226,0.0002602,2]
[312012971,1705547440416,-684.76229226,0.0002602,2]
[312012973,1705547440426,-500.0,0.0002602,2]
[312012975,1705547440435,-737.63259499,0.0002602,2]
[312012977,1705547440447,-684.76229226,0.0002602,2]
[312012979,1705547440456,-500.0,0.0002602,2]
[312012981,1705547440465,-684.76229226,0.0002602,2]
[312012983,1705547440475,-737.63259499,0.0002602,2]
[312012985,1705547440484,-684.76229226,0.0002602,2]
[312012987,1705547440495,-500.0,0.0002602,2]
[312012989,1705547440505,-684.76229226,0.0002602,2]
[312012991,1705547440517,-737.63259499,0.0002602,2]
[312012993,1705547440535,-684.76229226,0.0002602,2]
[312012995,1705547440544,-737.63259499,0.0002602,2]
[312012997,1705547440554,-737.63259499,0.0002602,2]
[312012999,1705547440564,-684.76229226,0.0002602,2]
[312013001,1705547440572,-737.63259499,0.0002602,2]
[312013003,1705547440582,-684.76229226,0.0002602,2]
[312013005,1705547440590,-684.76229226,0.0002602,2]
[312013007,1705547440600,-737.63259499,0.0002602,2]
[312013009,1705547440609,-737.63259499,0.0002602,2]
[312013011,1705547440620,-684.76229226,0.0002602,2]
[312013013,1705547440629,-684.76229226,0.0002602,2]
[312013015,1705547440638,-684.76229226,0.0002602,2]
[312013017,1705547440647,-684.76229226,0.0002602,2]
[312013019,1705547440656,-684.76229226,0.0002602,2]
[312013021,1705547440665,-499.99999999,0.0002602,2]
[312013023,1705547440674,-499.99999999,0.0002602,2]
[312013024,1705547440684,-1519.8296494,0.0002602,2]
[312013026,1705547440693,-1519.8296494,0.0002602,2]
[312013028,1705547440702,-3052.8924142,0.0002602,2]
[312013030,1705547440711,-3052.8924142,0.0002602,2]
[312013032,1705547440721,-1519.8296494,0.0002602,2]